Cogmind - Beta 9.2 @@@ ROGUE MODE // 2019.11.17 @ 00:26:16 Player: Cassie Rose Result: Destroyed by G-47 Trooper with Particle Gun Performance ------------- Evolutions (0) 0 Regions Visited (1) 200 Robots Destroyed (21) 105 Value Destroyed (311) 311 Prototype IDs (0) 0 Alien Tech Used (0) 0 Bonus (0) 0 TOTAL SCORE: 616 Bonus ------- None Cogmind --------- Core Integrity 0/250 Matter 300/300 Energy 124/125 System Corruption 0% Temperature Cool (109) Movement Core (100) Ox1 Location -10/Materials Parts ------- > --- POWER (1) -------- Light Ion Engine > --- PROPULSION (2) --- (None) > --- UTILITY (2) ------ Visual Processing Unit Seismic Analyzer > --- WEAPON (2) ------- Small Laser > --- INVENTORY (4) ---- (None) Peak State ------------ > --- POWER ------------ Light Ion Engine > --- PROPULSION ------- Hover Unit Hover Unit > --- UTILITY ---------- Visual Processing Unit Seismic Analyzer > --- WEAPON ----------- Small Laser Grenade Launcher > --- INVENTORY -------- Light Ion Engine Beam Cannon [Rating: 8] Favorites ----------- Power Light Ion Engine Engine Light Ion Engine Propulsion Compact Wheel Wheel Compact Wheel Hover Unit Hover Unit Utility Seismic Analyzer Device Improved Terrain Scanner Processor Seismic Analyzer Weapon Small Laser Energy Gun Small Laser Energy Cannon Beam Cannon Ballistic Gun Light Assault Rifle Launcher Grenade Launcher Build | -11 -10 ------- Run | Scr Mat Slots Evolved . | . . Power . | . . Propulsion . | . . Utility . | . . Weapon . | . . Parts Attached 24 | 8 16 Power 8 | 3 5 Engine 8 | 3 5 Core . | . . Reactor . | . . Propulsion 7 | 2 5 Treads . | . . Leg . | . . Wheel 4 | 2 2 Hover 3 | . 3 Flight . | . . Utility 3 | 2 1 Device 1 | 1 . Storage . | . . Processor 2 | 1 1 Hackware . | . . Protection . | . . Artifact . | . . Weapon 6 | 1 5 Energy Gun 3 | 1 2 Energy Cannon 1 | . 1 Ballistic Gun 1 | . 1 Ballistic Cannon . | . . Launcher 1 | . 1 Special Weapon . | . . Impact Weapon . | . . Slashing Weapon . | . . Piercing Weapon . | . . Special Melee Weapon . | . . Unidentified Prototypes . | . . Parts Lost 11 | . 11 Power 2 | . 2 Propulsion 3 | . 3 Utility 1 | . 1 Weapon 5 | . 5 Highest Loss Streak 8 | . 8 Average Slot Usage (%) 83 | . 83 Engine 13 | . 13 Wheel 17 | . 17 Hover 8 | . 8 Device 4 | . 4 Processor 20 | . 20 Energy Gun 11 | . 11 Launcher 4 | . 4 Naked Turns . | . . Heaviest Build 9 | 8 9 Greatest Support 32 | 32 32 Greatest Overweight (x) 1 | . 1 Average Overweight (x) . | . . Largest Inventory Capacity 4 | 4 4 Average Capacity 4 | 4 4 Most Carried 4 | 4 4 Average Carried 2 | 2 2 Final Capacity 4 | 4 4 Final Carried 2 | 2 . Class Distribution -------------------- 75% | Mutant 24% | Scavenger-Mutant Dominant Class ---------------- Mutant | -10/Materials Resources | -11 -10 ----------- Run | Scr Mat Matter Collected 408 | 270 138 Remotely . | . . Salvage Created 637 | 215 422 Parts 46 | 17 29 Haulers Intercepted 1 | . 1 Recyclers Shooed . | . . Parts Field Recycled . | . . Retrieved Matter . | . . Parts Self-Destructed . | . . Prevented . | . . Kills | -11 -10 ------- Run | Scr Mat Combat Hostiles Destroyed 8 | . 8 Guns 6 | . 6 Cannons 1 | . 1 AOE 1 | . 1 Classes Destroyed 8 | 3 5 Worker 4 | 2 2 Tunneler 4 | 4 . Hauler 1 | . 1 Recycler 1 | 1 . Operator 1 | . 1 Watcher 2 | . 2 Swarmer 3 | . 3 Grunt 5 | . 5 Best Kill Streak 4 | 3 4 Combat Bots Only 3 | . 3 Max Kills in Single Turn 2 | 2 1 Gunslinging . | . . Exploded 1 | . 1 Melee . | . . Uniques/NPCs Destroyed . | . . Combat | -11 -10 -------- Run | Scr Mat Damage Taken 876 | 6 870 Core 252 | 3 249 Absorbed by Shields . | . . Core Remaining (%) 98 | 98 . Volleys Fired 88 | 16 72 Largest 1 | 1 1 Hottest 60 | 40 60 Shots Fired 88 | 16 72 Gun 80 | 16 64 Cannon 8 | . 8 Launcher . | . . Special . | . . Kinetic 9 | . 9 Thermal 51 | . 51 Explosive . | . . Electromagnetic 28 | 16 12 Robot Hit Streak 18 | 3 18 Robot Miss Streak 3 | 3 3 Penetration Max . | . . Secondary Targets . | . . Shots Hit Robots 56 | 8 48 Core Hits 27 | 7 20 Critical Hits . | . . Critical Kills . | . . Critical Parts Destroyed . | . . Melee Attacks . | . . Impact . | . . Slashing . | . . Piercing . | . . Sneak Attacks . | . . Combat Hostiles . | . . Follow-up Attacks . | . . Damage Inflicted 982 | 278 704 Guns 650 | 149 501 Cannons 106 | . 106 Explosions 223 | 129 94 Melee . | . . Ramming 3 | . 3 Kinetic 69 | . 69 Thermal 638 | 129 509 Explosive . | . . Electromagnetic 272 | 149 123 Impact . | . . Slashing . | . . Piercing . | . . Highest Corruption . | . . Average Corruption . | . . Corruption Purged . | . . Overload Shots . | . . Overflow Damage . | . . Projectiles . | . . Explosions . | . . Melee . | . . Knockbacks . | . . Impact . | . . Kinetic . | . . Secondary . | . . Self-Inflicted Damage 37 | 6 31 Shots 2 | 1 1 Rammed 1 | . 1 Targets Rammed 1 | . 1 Kicked . | . . Crushed . | . . Highest Temperature 301 | 20 301 Average Temperature 87 | 18 92 Received Heat Transfer 441 | . 441 Effects 2 | . 2 Energy Bleed 2 | . 2 Siege Activations . | . . Robots Corrupted . | . . Combat Hostiles . | . . Parts Fried . | . . Impact Corruptions . | . . Robots Melted . | . . Combat Hostiles . | . . Parts Melted 3 | . 3 Heat Transferred 1122 | 50 1072 Parts Sabotaged . | . . Parts Stolen . | . . Parts Stripped . | . . Power Chain Reactions 3 | 2 1 Missiles Intercepted . | . . Alert | -11 -10 ------- Run | Scr Mat Peak Influence 210 | 35 210 Average Influence 86 | 14 105 Maximum Alert Level 1 | . 1 Low Security (%) 84 | 100 80 Level 1 15 | . 19 Level 2 . | . . Level 3 . | . . Level 4 . | . . Level 5 . | . . High Security . | . . Max Security . | . . Squads Dispatched 1 | . 1 Investigation . | . . Extermination . | . . Reinforcement 1 | . 1 Assault . | . . Garrison . | . . Intercept . | . . Construction Impeded . | . . Haulers Reinforced . | . . Stealth | -11 -10 --------- Run | Scr Mat Distress Signals 1 | . 1 Communications Jammed . | . . Distress Signals . | . . Times Spotted 19 | . 19 Peak Tracking Total 6 | . 6 Tactical Retreats 2 | . 2 Traps | -11 -10 ------- Run | Scr Mat Traps Triggered . | . . Indirectly . | . . Trap Hack Attempts . | . . Triggered . | . . Disarmed . | . . Reprogrammed . | . . Reused . | . . Traps Extracted . | . . Installed . | . . Triggered . | . . Machines | -11 -10 ---------- Run | Scr Mat Machines Disabled 1 | . 1 Max in Single Turn 1 | . 1 Machines Sabotaged . | . . Garrisons Compromised . | . . Overloaded Fab Kills . | . . Fab Network Shutdowns . | . . Hacking | -11 -10 --------- Run | Scr Mat Machines Accessed 4 | . 4 Terminals 4 | . 4 Fabricators . | . . Repair Stations . | . . Recycling Units . | . . Scanalyzers . | . . Garrison Access . | . . Total Hacks 12 | . 12 Successful 10 | . 10 Failed 2 | . 2 Catastrophic 1 | . 1 Database Lockouts . | . . Manual 12 | . 12 Terminals 12 | . 12 Fabricators . | . . Repair Stations . | . . Recycling Units . | . . Scanalyzers . | . . Garrison Access . | . . Terminal Hacks 4 | . 4 Branch Access Points 1 | . 1 Unreport Threat 1 | . 1 Zone Layout 2 | . 2 Fabricator Hacks . | . . Repair Station Hacks . | . . Recycling Unit Hacks . | . . Scanalyzer . | . . Garrison Access Hacks . | . . Unauthorized Hacks 12 | . 12 Terminals 6 | . 6 Assimilate 2 | . 2 Botnet 4 | . 4 Fabricators . | . . Repair Stations . | . . Recycling Units . | . . Scanalyzers . | . . Garrison Access . | . . Data Cores Recovered . | . . Used . | . . Hacking Detections 4 | . 4 Full Trace Events . | . . Feedback Events . | . . Feedback Blocked . | . . Robot Schematics Acquired . | . . Robots Built . | . . Matter . | . . Time . | . . Total Robot Build Rating . | . . Part Schematics Acquired . | . . Parts Built . | . . Matter . | . . Time . | . . Total Part Build Rating . | . . Parts Repaired . | . . Time . | . . Parts Recycled . | . . Recycled Matter . | . . Retrieved Matter . | . . Retrieved Components . | . . Parts Scanalyzed . | . . Part Schematics Acquired . | . . Parts Damaged . | . . Bothacking | -11 -10 ------------ Run | Scr Mat Used RIF Installer . | . . Robots Hacked . | . . Non-combat . | . . Combat . | . . Robot Hacks Applied . | . . Relay Couplers Released . | . . Robots Rewired . | . . Allies Hacked . | . . Hacks Repelled . | . . Allies | -11 -10 -------- Run | Scr Mat Total Allies . | . . Largest Group . | . . Highest-Rated Group . | . . Highest-Rated Ally . | . . Total Orders . | . . Ally Attacks . | . . Total Damage . | . . Kills . | . . Allies Corrupted . | . . Allies Melted . | . . Intel | -11 -10 ------- Run | Scr Mat Robot Analysis Total . | . . Derelict Logs Recovered . | . . Drone Launches . | . . Drone Recoveries . | . . Exploration | -11 -10 ------------- Run | Scr Mat Turns Passed 618 | 127 491 Spaces Moved 322 | 71 251 Core 5 | 1 4 Treads . | . . Legs . | . . Wheels 269 | 70 199 Hover 48 | . 48 Flight . | . . Fastest Speed 50 | 50 50 Average Speed 93 | 99 91 Slowest Speed 120 | 100 120 Overloaded Moves . | . . Propulsion Burnouts . | . . Robots Hopped . | . . Cave-ins Triggered . | . . Exploration Rate (%) 26 | 4 49 Regions Visited 1 Branch Regions . Pre-discovered Areas . | . . Known Exits Taken . | . . Unknown Exits Taken 1 | 1 . Scrap Searched . | . . Spaces Dug . | . . Terrain Destroyed 11 | 5 6 Melee . | . . Projectile . | . . AOE 11 | 5 6 Actions | -11 -10 --------- Run | Scr Mat Total 555 | 112 443 Wait 88 | 4 84 Move 321 | 70 251 Hop . | . . Pick Up 24 | 11 13 Fast Attach . | . . Attach 15 | 6 9 Detach . | . . Swap 9 | 2 7 Drop 9 | 3 6 Fire 88 | 16 72 Melee . | . . Ram 1 | . 1 Kick . | . . Crush . | . . Escape Stasis . | . . Rewire . | . . Trap . | . . Miscellaneous . | . . Route ------- -11/Scrapyard -10/Materials (discovered 3 exits: [*Mat] / *Min x2) History --------- Turn | Location | Event 21 | -11/Scrapyard | Discovered new exit (range 15) 128 | -11/Scrapyard | Entered Materials 134 | -10/Materials | Identified exit to Mines 286 | -10/Materials | Discovered new exit (range 8) 334 | -10/Materials | Lost 3 parts (1n1u1w) 353 | -10/Materials | Build established: Mutant 604 | -10/Materials | Core integrity fell below 50% 612 | -10/Materials | Core integrity fell below 20% 619 | -10/Materials | Destroyed by G-47 Trooper with Particle Gun Last Messages --------------- 00590_ Beam Cannon destroyed. 00590_ Acquired Lgt. Assault Rifle. 00590_ Hover Unit destroyed. 00591_ K-01 Serf collects debris. 00595_ Grenade Launcher destroyed. 00596_ G-34 Mercenary destroyed. 00596_ K-01 Serf collects debris. 00598_ Overheating: Energy bleed (-25). 00598_ S-10 Pest destroyed. 00601_ Lgt. Ion Engine destroyed. 00601_ K-01 Serf collects debris. 00607_ Lgt. Assault Rifle destroyed. 00608_ Acquired 4 matter. 00609_ Acquired Lgt. Ion Engine. 00611_ Acquired 10 matter. 00612_ Acquired Sml. Laser. 00614_ G-47 Trooper destroyed. 00615_ K-01 Serf collects debris. 00618_ K-01 Serf destroyed. 00619_ Acquired 10 matter. Map ----- +----------------------------------------------------+ | ?????????????????????????????????????????????????? | | ????????????????????????????????????????#???????#? | | ???????????????????????????????????????? ? ?####?? | | ????????????????????????????????????#?#?? ??? | | ????????????????????????????????????#?#??? ? | | ???????????????????????????????????????????? ? | | ??????????????????????????????????????#?????###+## | | ?????????????????????????????????????########| | | ?????????????????????????????????###?# ## [ | | ??????????????????????????????#??????# ##""" | | ???????????????????????????????#??#??# ##""" ! | | ????????????????????????????????????## ""##""" | | ???????????????????????????????????### T"## [ | | ?????????????????????????????????#???# ""## "Y % | | ?????????????????????????????######### ##%"" = | | ???????????????????########+## ##+#####+#### | | ??????????????????## % % % | | ??????????????????+ > | | ???????????????????# " % """ | | ???????????????????# T ## ## ^ """ ^ | | ????????????+####### " ## "|"!" ## """^ | | ?????????# ##""|"!""## | | ?????????+ * ########### | | ?????????# %[= #???#?#?### """ | | ???????????#+###/#####/####+###???????# """ | | ????????????????????#!kg%@g* #??????## """ | | ????????????????????# k=[=k #?#?????# ^ | | ????????????????????# *% #?????#?# | | ????????????????????# #???????# ^ | | ????????????????????###########??#??#?# | | ????????????????????????????????????#?# | | ???????>?????????????????????########## !! | | ?????????????????????????? !! | | ????????????????????????????#???###### | | ????????????????????????????##?#??#?## | | ??????????????????????????????#??########+######## | | ?????????????????????????????????## ###??## | | ???????????????????????????????#??# #??#### | | ??????????????????????????????????# ####### | | ?????????????????????????????#????# # | | ????????????????????????????????### # | | ???????????????????????????#????#?# + | | ????????????????????????????#???#?# # | | ????????????????????????????#?????# ### | | ?????????????????????????????#????# #?# | | ????????????????????????????????############?# | | ???????????????????????????????????##??????###+### | | ???????????????????????????????????????##??# | | ????????????????????????????????#????##?#??#= | | ?????????????????????????????????????????### """ | +----------------------------------------------------+ Best States ------------- Heat Dissipation 25 Energy Generation 10 Energy Capacity 250 Matter Stores 300 Matter Capacity 300 Sight Range 18 Terrain Scan Range 16 Terrain Scan Density 60 Evasion (%) 53 Item Schematics ----------------- None Robot Schematics ------------------ None Fabricated ------------ Nothing Alien Tech Used ----------------- None Achievements -------------- None Challenges ------------ None Game ------ Seed UtilityTransportMallet Manual? 0 Play Time 00:14:19 Cumulative 16.5 hours Start 2019.11.17 @ 00:12:29 End 2019.11.17 @ 00:26:16 Sessions 1 Manual Loads 0 Difficulty Rogue Special Mode None Game No. 24 Rogue 24 Adventurer 0 Explorer 0 Win Type - Total 0 Types 0/0/0/0/0/0/0 Lore% 18 Gallery% 15 Achievement% 17 Wizard Run 0 Options --------- ASCII 0 Keyboard 0 Movement Mouse Keybinds 0 Fullscreen 1 Font 18/X11 Map View 76x50 Tactical HUD 1 Map Filters NONE Filters LOW_CONTRAST(13,24,33) Steam 1 RUN: 7ae94df4-7741-445a-9781-8ce79fee707f